bitfinex-derivatives/quotes_BTCF0:USTF0_20250327
["timestamp","ask_amount","ask_price","bid_price","bid_amount"]
[1743088690485,0.1148614,87565.0,87564.0,0.35987999]
[1743088691672,0.1148614,87565.0,87564.0,0.36087999]
[1743088692279,0.1148614,87565.0,87564.0,0.47510269]
[1743088692482,0.1148614,87565.0,87564.0,0.54447999]
[1743088692688,0.1148614,87565.0,87564.0,0.65870269]
[1743088692876,0.1148614,87565.0,87564.0,0.54447999]
[1743088693185,0.1148614,87565.0,87564.0,0.45397999]
[1743088693587,0.1158614,87565.0,87564.0,0.45297999]
[1743088693777,0.2127614,87565.0,87564.0,0.45297999]
[1743088694377,0.2117614,87565.0,87564.0,0.45297999]
[1743088696184,0.21912554,87565.0,87564.0,0.45297999]
[1743088696488,0.21912554,87565.0,87564.0,0.0006]
[1743088696690,0.21912554,87565.0,87558.0,0.1142301]
[1743088696691,0.1142305,87559.0,87558.0,0.1142301]
[1743088696893,0.11483051,87559.0,87558.0,0.2054301]
[1743088697084,0.29993051,87559.0,87558.0,0.2054301]
[1743088698491,0.29993051,87559.0,87558.0,0.0922]
[1743088702493,0.18570001,87559.0,87556.0,0.0001713]
[1743088702677,0.1142449,87547.0,87546.0,0.00840416]
[1743088702985,0.1149649,87547.0,87546.0,0.00900416]
[1743088703190,0.00072,87547.0,87546.0,0.48405036]
[1743088703382,0.1142449,87547.0,87546.0,0.4756462]
[1743088703579,0.1149649,87547.0,87546.0,0.3614]
[1743088703876,0.1149649,87547.0,87546.0,0.36994124]
[1743088704076,0.1149649,87547.0,87546.0,0.3614]
[1743088704482,0.2087649,87547.0,87546.0,0.3634]
[1743088704890,0.2087649,87547.0,87546.0,0.3654]
[1743088705385,0.2087649,87547.0,87546.0,0.0046]
[1743088706190,0.2087649,87547.0,87546.0,0.0026]
[1743088706892,0.1142527,87541.0,87540.0,0.0976]
[1743088707187,0.1149727,87541.0,87540.0,0.09828]
[1743088707385,0.1149727,87541.0,87540.0,0.212534]
[1743088707689,0.2082449,87547.0,87540.0,0.212534]
[1743088707690,0.00017096,87555.0,87554.0,0.1142357]
[1743088707885,0.11440536,87555.0,87554.0,0.4756757]
[1743088708085,0.11512536,87555.0,87554.0,0.4756757]
[1743088708286,0.11504536,87555.0,87554.0,0.4756757]
[1743088708786,0.11504536,87555.0,87554.0,0.36144]
[1743088708994,0.11504536,87555.0,87554.0,0.00064]
[1743088709193,0.11504536,87555.0,87554.0,0.3075757]
[1743088709194,0.30434536,87555.0,87554.0,0.3075757]
[1743088709494,0.00081096,87555.0,87554.0,0.43528388]
[1743088709785,0.00017096,87555.0,87554.0,0.43528388]
[1743088710292,0.00017096,87555.0,87554.0,0.43628388]
[1743088710689,0.11440536,87555.0,87554.0,0.43628388]
[1743088710879,0.00017096,87555.0,87554.0,0.43828388]
[1743088711394,0.1713272,87572.0,87571.0,0.1713147]
[1743088711592,0.0571874,87570.0,87569.0,0.1142152]
[1743088711887,0.0878,87571.0,87569.0,0.2028549]
[1743088712087,0.08844,87571.0,87570.0,0.1142149]
[1743088712292,0.0878,87571.0,87570.0,0.1148549]
[1743088712482,0.0878,87571.0,87570.0,0.2999549]
[1743088712685,0.0004,87582.0,87581.0,0.1142005]
[1743088712884,0.0878,87586.0,87583.0,0.0570983]
[1743088713091,0.08788,87586.0,87585.0,0.4749953]
[1743088713283,0.171281,87592.0,87590.0,0.1141875]
[1743088713595,0.00092,87592.0,87591.0,0.1450931]
[1743088713789,0.1151062,87592.0,87591.0,0.2430731]
[1743088713988,0.12141732,87592.0,87591.0,0.2430731]
[1743088714188,0.00723112,87592.0,87591.0,0.2430731]
[1743088714392,0.00639112,87592.0,87591.0,0.18598]
[1743088714692,0.12049732,87592.0,87591.0,0.18598]
[1743088714894,0.12137733,87592.0,87591.0,0.19339262]
[1743088715194,0.11506621,87592.0,87591.0,0.19339262]
[1743088716498,0.12142175,87592.0,87591.0,0.19339262]
[1743088717097,0.12142175,87592.0,87591.0,0.31387262]
[1743088717297,0.12142175,87592.0,87591.0,0.19339262]
[1743088717595,0.12142175,87592.0,87591.0,0.32241104]
[1743088717796,0.12142175,87592.0,87591.0,0.20193104]
[1743088717993,0.12142175,87592.0,87591.0,0.10483104]
[1743088718190,0.21762175,87592.0,87591.0,0.10483104]
[1743088718497,0.21762175,87592.0,87591.0,0.09741842]
[1743088719083,0.21762175,87592.0,87591.0,0.00941842]
[1743088719391,0.21126621,87592.0,87591.0,0.00941842]
[1743088719592,0.21126621,87592.0,87591.0,0.00853842]
[1743088719892,0.1141927,87587.0,87586.0,0.0878]
[1743088720084,0.1142031,87579.0,87578.0,0.12048]
[1743088720287,0.1142031,87579.0,87578.0,0.00084]
[1743088720592,0.1150431,87579.0,87578.0,0.00084]
[1743088720794,0.12131687,87579.0,87578.0,0.00084]
[1743088721693,0.1142123,87572.0,87571.0,0.00740121]
[1743088721993,0.1148523,87572.0,87571.0,0.00800121]
[1743088722496,0.12112607,87572.0,87571.0,0.0006]
[1743088722696,0.12112607,87572.0,87570.0,0.26609273]
[1743088722697,0.1142136,87571.0,87570.0,0.26609273]
[1743088722898,0.2027736,87571.0,87570.0,0.26669273]
[1743088724096,0.2027736,87571.0,87570.0,0.0006]
[1743088724298,0.1142214,87565.0,87564.0,0.0944]
[1743088724493,0.4757814,87565.0,87564.0,0.095]
[1743088724994,0.4757814,87565.0,87564.0,0.0006]
[1743088725198,0.1142227,87564.0,87563.0,0.0001713]
[1743088725493,0.2062627,87564.0,87563.0,0.0001713]
[1743088726199,0.1142357,87554.0,87553.0,0.26609273]
[1743088726503,0.4757957,87554.0,87553.0,0.26669273]
[1743088726798,0.57675752,87554.0,87553.0,0.26669273]
[1743088727494,0.57675752,87554.0,87553.0,0.26969273]
[1743088728997,0.57675752,87554.0,87553.0,0.27169273]
[1743088729795,0.57675752,87554.0,87553.0,0.0056]
[1743088730095,0.57675752,87554.0,87553.0,0.005]
[1743088730299,0.5706957,87554.0,87553.0,0.005]
[1743088730496,0.1142462,87546.0,87545.0,0.0001713]
[1743088730691,0.4758462,87546.0,87534.0,0.0072879]
[1743088730890,0.1142605,87535.0,87534.0,0.00092]
[1743088731097,0.0571341,87531.0,87528.0,0.1714013]
[1743088731300,0.0571341,87530.0,87529.0,0.1866]
[1743088731507,0.17236121,87530.0,87529.0,0.3015071]
[1743088731699,0.16736121,87530.0,87529.0,0.3015071]
[1743088731900,0.25886121,87530.0,87529.0,0.30873053]
[1743088732100,0.25286121,87530.0,87529.0,0.30873053]
[1743088732298,0.25286121,87530.0,87529.0,0.19446343]
[1743088732599,0.25286121,87530.0,87529.0,0.30873183]
[1743088732798,0.25286121,87530.0,87529.0,0.31473183]
[1743088733401,0.25286121,87530.0,87529.0,0.19324]
[1743088733604,0.34666121,87530.0,87529.0,0.31492017]
[1743088734106,0.34766121,87530.0,87529.0,0.10224]
[1743088734306,0.34766121,87530.0,87529.0,0.2165084]
[1743088734709,0.13959411,87530.0,87529.0,0.2165084]
[1743088735011,1e-08,87530.0,87529.0,0.67564994]
[1743088735206,0.093,87545.0,87544.0,0.1142488]
[1743088735404,8e-05,87547.0,87546.0,0.1142462]
[1743088735708,0.1142449,87547.0,87546.0,0.1149262]
[1743088735893,0.00064,87547.0,87546.0,0.3007262]
[1743088736098,0.1142449,87547.0,87546.0,0.3007262]
[1743088736300,0.1148849,87547.0,87546.0,0.3007262]
[1743088736602,0.00064,87547.0,87546.0,0.3007262]
[1743088736808,0.1713652,87552.0,87551.0,0.1713546]
[1743088737000,0.1713652,87552.0,87551.0,0.1719546]
[1743088737201,0.1720852,87552.0,87551.0,0.1719546]
[1743088737802,0.0578408,87552.0,87551.0,0.17914471]
[1743088738209,0.0571208,87552.0,87551.0,0.18114471]
[1743088739298,0.1468208,87552.0,87551.0,0.0026]
[1743088739510,0.2350208,87552.0,87551.0,0.1188397]
[1743088739711,0.2357008,87552.0,87551.0,0.1188397]
[1743088740214,0.2357008,87552.0,87551.0,0.2080397]
[1743088740515,0.2357008,87552.0,87551.0,0.0938]
[1743088741313,0.2357008,87552.0,87551.0,0.2080397]
[1743088742215,0.2046183,87552.0,87551.0,0.2080397]
[1743088742401,0.2039383,87552.0,87551.0,0.2080397]
[1743088742602,0.2045783,87552.0,87551.0,0.2959397]
[1743088743008,0.2045783,87552.0,87551.0,0.1817]
[1743088743204,0.2956783,87552.0,87551.0,0.0938]
[1743088743618,0.2956783,87552.0,87551.0,0.2080397]
[1743088744998,0.2956783,87552.0,87551.0,0.1188397]
[1743088745506,0.2956783,87552.0,87551.0,0.2061397]
[1743088746512,0.2956783,87552.0,87551.0,0.2955397]
[1743088746708,0.2956783,87552.0,87551.0,0.0046]
[1743088746911,0.1142553,87539.0,87527.0,0.0571349]
[1743088747110,0.1150553,87539.0,87538.0,0.0008113]
[1743088747613,0.3024553,87539.0,87538.0,0.0008113]
[1743088747997,0.3024553,87539.0,87538.0,0.0058113]
[1743088748606,0.3034553,87539.0,87538.0,0.0108113]
[1743088749815,0.2084553,87539.0,87538.0,0.0108113]
[1743088750111,0.1204,87554.0,87538.0,0.0108113]
[1743088750112,0.00578596,87559.0,87549.0,0.057121]
[1743088750316,0.114241,87550.0,87549.0,0.36144]
[1743088750516,0.11484101,87550.0,87549.0,0.36144]
[1743088750708,0.30012366,87550.0,87549.0,0.36144]
[1743088751123,0.30012366,87550.0,87549.0,0.4756823]
[1743088751308,0.29394101,87550.0,87549.0,0.36144]
[1743088751713,0.09170001,87550.0,87549.0,0.4756823]
[1743088751912,0.00060001,87550.0,87549.0,0.4756823]
[1743088752117,0.1504179,87554.0,87553.0,0.114237]
[1743088752417,0.1504179,87554.0,87553.0,0.114837]
[1743088752616,0.2457579,87554.0,87553.0,0.0006]
[1743088753019,0.09394,87554.0,87553.0,0.114837]
[1743088753314,0.0933,87554.0,87553.0,0.1206513]
[1743088753521,0.2075357,87554.0,87553.0,0.1206513]
[1743088753712,0.20813571,87554.0,87553.0,0.1206513]
[1743088753912,0.29763571,87554.0,87553.0,0.0006]
[1743088754111,0.29763571,87554.0,87553.0,0.116837]
[1743088754919,0.29763571,87554.0,87553.0,0.12262002]
[1743088755316,0.29763571,87554.0,87553.0,0.12562002]
[1743088755521,0.29763571,87554.0,87553.0,0.0056]
[1743088755815,0.29763571,87554.0,87553.0,0.119837]
[1743088756008,0.29763571,87554.0,87553.0,0.0056]
[1743088756210,0.30388096,87554.0,87553.0,0.0056]
[1743088756621,0.1713725,87545.0,87544.0,0.1142476]
[1743088756821,0.1720525,87545.0,87544.0,0.1148476]
[1743088757024,0.1720525,87545.0,87544.0,0.0006]
[1743088757317,0.1720525,87545.0,87544.0,0.1148488]
[1743088757507,0.1720525,87545.0,87544.0,0.0006]
[1743088757713,0.3615525,87545.0,87544.0,0.0006]
[1743088757915,0.4186769,87545.0,87544.0,0.1198488]
[1743088758112,0.4186769,87545.0,87544.0,0.0096]
[1743088758914,0.42494465,87545.0,87544.0,0.0096]
[1743088759829,0.19644775,87545.0,87544.0,0.1238488]
[1743088760123,0.09558,87545.0,87544.0,0.1238488]
[1743088760632,0.09558,87545.0,87544.0,0.2442088]
[1743088760920,8e-05,87547.0,87546.0,0.1142462]
[1743088761113,8e-05,87547.0,87546.0,0.1148462]
[1743088761317,0.0001713,87555.0,87554.0,0.1142357]
[1743088761621,0.0008113,87555.0,87554.0,0.1148757]
[1743088761821,0.0008113,87555.0,87554.0,0.4136957]
[1743088762713,0.0933113,87555.0,87554.0,0.4136957]
[1743088762910,0.2075457,87555.0,87554.0,0.21206]
[1743088763124,0.2075457,87555.0,87554.0,0.3262957]
[1743088763331,0.2988457,87555.0,87554.0,0.3262957]
[1743088763625,0.2988457,87555.0,87554.0,0.2059757]
[1743088763826,0.2988457,87555.0,87554.0,0.2079757]
[1743088764022,0.2988457,87555.0,87554.0,0.2089757]
[1743088765022,0.2988457,87555.0,87554.0,0.09474]
[1743088765219,0.30512415,87555.0,87554.0,0.00364]
[1743088765427,0.1142553,87539.0,87538.0,0.1144279]
[1743088765628,0.1150153,87539.0,87538.0,0.1151079]
[1743088765831,0.3013153,87539.0,87538.0,0.1151079]
[1743088766025,0.30759375,87539.0,87538.0,0.1151079]
[1743088766525,0.30759375,87539.0,87538.0,0.2057079]
[1743088766723,0.30859375,87539.0,87538.0,0.0038513]
[1743088766921,0.3918153,87539.0,87538.0,0.0038513]
[1743088767533,0.3918153,87539.0,87538.0,0.0068513]
[1743088768231,0.39835513,87539.0,87538.0,0.0068513]
[1743088768437,0.1142618,87534.0,87533.0,0.33261592]
[1743088768629,0.11522181,87534.0,87533.0,0.33321592]
[1743088769025,0.47602181,87534.0,87533.0,0.33321592]
[1743088769327,0.47602181,87534.0,87503.0,0.3608]
[1743088769328,0.1142971,87507.0,87503.0,0.3608]
[1743088769636,0.1154571,87507.0,87506.0,0.5716984]
[1743088769823,0.1154571,87507.0,87506.0,0.4574]
[1743088769824,0.1142971,87507.0,87506.0,0.4574]
[1743088770024,0.11553711,87507.0,87506.0,0.4574]
[1743088770221,0.29933711,87507.0,87506.0,0.4574]
[1743088770834,0.29933711,87507.0,87506.0,0.3614]
[1743088773531,0.30033711,87507.0,87506.0,0.3614]
[1743088774836,0.30033711,87507.0,87506.0,0.0006]
[1743088775039,0.66113711,87507.0,87506.0,0.0006]
[1743088775333,0.1142984,87506.0,87505.0,0.00171395]
[1743088775632,0.1154584,87506.0,87505.0,0.00171395]
[1743088775838,0.2910584,87506.0,87505.0,0.11601365]
[1743088776027,0.2910584,87506.0,87505.0,0.11661365]
[1743088776237,0.2057584,87506.0,87505.0,0.11661365]
[1743088776434,0.2067584,87506.0,87505.0,0.29211365]
[1743088776624,0.2067584,87506.0,87505.0,0.17781395]
[1743088777026,0.2920584,87506.0,87505.0,0.17781395]
[1743088777234,0.2910584,87506.0,87505.0,0.17781395]
[1743088778332,0.2920584,87506.0,87505.0,0.17781395]
[1743088779734,0.2930584,87506.0,87505.0,0.17781395]
[1743088780035,0.2077584,87506.0,87505.0,0.2903997]
[1743088780943,0.00216,87506.0,87505.0,0.2903997]
[1743088781239,0.001,87506.0,87505.0,0.2903997]
[1743088781836,0.1142952,87509.0,87508.0,0.1142958]
[1743088782138,0.1154545,87509.0,87508.0,0.1148958]
[1743088782333,0.1142945,87509.0,87508.0,0.1148958]
[1743088782533,0.1142945,87509.0,87508.0,0.2976958]
[1743088783233,0.0571465,87511.0,87508.0,0.2976958]
[1743088783435,8e-05,87514.0,87513.0,0.1142893]
[1743088783741,0.00124,87514.0,87513.0,0.6584893]
[1743088783938,0.1142749,87524.0,87515.0,0.0571429]
[1743088784130,0.1421377,87524.0,87518.0,0.4750827]
[1743088784336,0.1714143,87523.0,87522.0,0.1142762]
[1743088784536,0.1722143,87523.0,87522.0,0.1149162]
[1743088784730,0.1429381,87523.0,87522.0,0.00064]
[1743088784935,0.1429381,87523.0,87522.0,0.00629817]
[1743088785233,0.2295381,87523.0,87522.0,0.00064]
[1743088785843,0.2295381,87523.0,87522.0,0.1149175]
[1743088790439,0.2295381,87523.0,87522.0,0.00064]
[1743088790642,0.2295381,87523.0,87522.0,0.1149175]
[1743088791346,0.2295381,87523.0,87522.0,0.00064]
[1743088791649,0.2295381,87523.0,87522.0,0.1149175]
[1743088793244,0.2295381,87523.0,87522.0,0.00064]
[1743088794148,0.23601401,87523.0,87522.0,0.00064]
[1743088794938,0.23601401,87523.0,87513.0,0.595368]
[1743088794939,0.1142879,87514.0,87513.0,0.3608]
[1743088795157,0.0571498,87505.0,87499.0,0.1260344]
[1743088795355,0.0571498,87505.0,87499.0,0.0063544]
[1743088795356,0.1143062,87500.0,87499.0,0.0063544]
[1743088795544,0.11550621,87500.0,87499.0,0.1206619]
[1743088795851,0.20450621,87500.0,87499.0,0.1206619]
[1743088796938,0.29190621,87500.0,87499.0,0.1206619]
[1743088797747,0.29190621,87500.0,87499.0,0.0006]
[1743088797942,0.29190621,87500.0,87499.0,0.1149075]
[1743088798143,0.29290621,87500.0,87499.0,0.1149075]
[1743088798648,0.29290621,87500.0,87499.0,0.0006]
[1743088800941,0.29290621,87500.0,87499.0,0.0863]
[1743088801146,0.29290621,87500.0,87499.0,0.2006075]
[1743088801356,0.20550621,87500.0,87499.0,0.2006075]
[1743088801846,0.20550621,87500.0,87499.0,0.1839]
[1743088802042,0.29880621,87500.0,87499.0,0.0863]
[1743088802250,0.29880621,87500.0,87499.0,0.0006]
[1743088802548,0.29880621,87500.0,87499.0,0.1149075]
[1743088802749,0.27650001,87500.0,87499.0,0.2030075]
[1743088802952,0.27650001,87500.0,87499.0,0.4160875]
[1743088802953,0.00220001,87500.0,87499.0,0.4160875]
[1743088803144,8e-05,87507.0,87506.0,0.1142984]
[1743088803345,0.00124001,87507.0,87506.0,0.4757384]
[1743088803674,0.10254017,87508.0,87507.0,0.1142971]
[1743088803864,0.10378018,87508.0,87507.0,0.1149371]
[1743088804155,0.10378018,87508.0,87507.0,0.2958371]
[1743088804359,0.21807598,87508.0,87507.0,0.2958371]
[1743088804546,0.11553581,87508.0,87507.0,0.2958371]
[1743088804743,0.21253581,87508.0,87507.0,0.2958371]
[1743088804943,0.30793581,87508.0,87507.0,0.08874]
[1743088805149,0.30793581,87508.0,87507.0,0.00064]
[1743088805446,0.114301,87504.0,87503.0,0.0881]
[1743088805645,0.097,87508.0,87507.0,0.1142971]
[1743088805851,0.21249581,87508.0,87507.0,0.1148971]
[1743088806049,0.21369582,87508.0,87507.0,0.1891]
[1743088806254,0.21249581,87508.0,87507.0,0.0934]
[1743088806452,0.30799581,87508.0,87507.0,0.0934]
[1743088806854,0.30799581,87508.0,87507.0,0.0006]
[1743088808148,0.30799581,87508.0,87507.0,0.0016]
[1743088808549,0.31431381,87508.0,87507.0,0.0016]
[1743088810862,0.31431381,87508.0,87507.0,0.0933]
[1743088811064,0.31431381,87508.0,87507.0,0.2075971]
[1743088811260,0.19370001,87508.0,87507.0,0.2075971]
[1743088811656,0.19370001,87508.0,87507.0,0.3037971]
[1743088812556,0.30799581,87508.0,87507.0,0.3037971]
[1743088813853,0.09820001,87508.0,87507.0,0.3037971]
[1743088814057,0.11454332,87511.0,87510.0,0.1142932]
[1743088814259,0.11566333,87511.0,87510.0,0.0938]
[1743088814463,0.30176333,87511.0,87510.0,0.0938]
[1743088814663,0.30176333,87511.0,87510.0,0.0006]
[1743088815059,0.1142958,87508.0,87507.0,0.001]
[1743088815267,0.11549581,87508.0,87507.0,0.001]
[1743088815467,0.29639581,87508.0,87507.0,0.001]
[1743088815867,0.29639581,87508.0,87479.0,0.3608]
[1743088815868,0.44637592,87508.0,87479.0,0.3608]
[1743088816063,0.1143258,87485.0,87484.0,0.26849404]
[1743088816362,0.1156058,87485.0,87484.0,0.26857404]
[1743088816973,0.1156058,87485.0,87484.0,0.00068]
[1743088816974,0.30291551,87485.0,87484.0,0.00068]
[1743088817273,0.1143284,87483.0,87482.0,0.26789404]
[1743088817454,0.12257633,87483.0,87482.0,0.26857404]
[1743088817656,0.12898604,87483.0,87482.0,0.26857404]
[1743088818573,0.12998604,87483.0,87482.0,0.26857404]
[1743088818762,0.12998604,87483.0,87476.0,0.00017142]
[1743088818763,0.1143363,87477.0,87476.0,0.00017142]
[1743088818962,0.1143389,87475.0,87474.0,0.33558889]
[1743088819163,0.11593891,87475.0,87474.0,0.33558889]
[1743088819563,0.41835719,87475.0,87474.0,0.33558889]
[1743088819972,0.1143481,87468.0,87467.0,0.40111363]
[1743088820263,0.11590811,87468.0,87467.0,0.40111363]
[1743088820965,0.30220811,87468.0,87467.0,0.40111363]
[1743088821964,0.30915579,87468.0,87467.0,0.40111363]
[1743088822160,0.30220811,87468.0,87467.0,0.40111363]
[1743088822364,0.30850418,87468.0,87467.0,0.40111363]
[1743088822767,0.1143494,87467.0,87466.0,0.00017142]
[1743088822966,0.11590941,87467.0,87466.0,0.00017142]
[1743088823167,0.30220941,87467.0,87466.0,0.00017142]
[1743088825761,0.30850293,87467.0,87466.0,0.00017142]
[1743088828170,0.1143533,87464.0,87463.0,0.0904]
[1743088828376,0.1143533,87464.0,87423.0,0.5720314]
[1743088828377,0.1143611,87458.0,87457.0,0.211962]
[1743088828577,0.11592111,87458.0,87457.0,0.211962]
[1743088828775,0.00156001,87458.0,87457.0,0.211962]
[1743088828979,0.1143592,87464.0,87463.0,0.0571767]
[1743088829178,0.1143546,87463.0,87462.0,0.3130559]
[1743088829476,0.21641461,87463.0,87462.0,0.1987]
[1743088829780,0.21641461,87463.0,87462.0,0.0976]
[1743088831880,0.31161461,87463.0,87462.0,0.0976]
[1743088834871,0.1143611,87458.0,87457.0,0.1143621]
[1743088835083,0.1143624,87457.0,87456.0,0.0971]
[1743088835284,0.31062241,87457.0,87456.0,0.0971]
[1743088836983,0.31062241,87457.0,87456.0,0.2114637]
[1743088837181,0.31062241,87457.0,87456.0,0.3034637]
[1743088837482,0.21662241,87457.0,87456.0,0.3034637]
[1743088837681,0.21662241,87457.0,87456.0,0.1891]
[1743088837888,0.31982241,87457.0,87456.0,0.3034637]
[1743088838281,0.31982241,87457.0,87456.0,0.1891]
[1743088838675,0.31982241,87457.0,87456.0,0.0971]
[1743088839283,0.20546001,87457.0,87441.0,0.481]
[1743088839485,0.1715704,87444.0,87443.0,0.1143802]
[1743088839784,0.17313041,87444.0,87443.0,0.3070802]
[1743088840795,0.17413041,87444.0,87443.0,0.3070802]
[1743088841192,0.17413041,87444.0,87443.0,0.31585395]
[1743088841879,0.17413041,87444.0,87443.0,0.32278027]
[1743088842077,0.17513041,87444.0,87443.0,0.32278027]
[1743088843583,0.00356001,87444.0,87443.0,0.68358027]
[1743088843780,8e-05,87459.0,87448.0,0.0571867]
[1743088843980,0.00164001,87459.0,87458.0,0.4751611]
[1743088844181,0.13634183,87468.0,87465.0,0.114352]
[1743088844389,0.13746184,87468.0,87467.0,0.4751494]
[1743088844580,0.13634183,87468.0,87467.0,0.4757494]
[1743088844884,0.1143317,87481.0,87475.0,0.1143389]
[1743088845086,0.1711706,87476.0,87475.0,0.4757389]
[1743088845286,0.1711706,87476.0,87475.0,0.7679389]
[1743088845486,0.29197145,87476.0,87475.0,0.7679389]
[1743088846092,0.29197145,87476.0,87475.0,0.77503334]
[1743088846577,0.29197145,87476.0,87475.0,0.56849444]
[1743088846777,0.22073236,87476.0,87475.0,0.68283334]
[1743088846984,0.31853236,87476.0,87475.0,0.68283334]
[1743088847184,0.10739476,87476.0,87475.0,0.68283334]
[1743088847489,0.00763476,87476.0,87475.0,0.68283334]
[1743088847690,0.00875477,87476.0,87475.0,0.68283334]
[1743088847890,0.10735477,87476.0,87475.0,0.68283334]
[1743088848186,0.00875477,87476.0,87475.0,0.68283334]
[1743088848384,0.00763476,87476.0,87475.0,0.68283334]
[1743088848586,8e-05,87488.0,87487.0,0.1143232]
[1743088848788,0.00120001,87488.0,87487.0,0.6530842]
[1743088849090,0.16991909,87490.0,87489.0,0.1143206]
[1743088849387,0.1709591,87490.0,87489.0,0.1149206]
[1743088849691,0.2852784,87490.0,87489.0,0.1149206]
[1743088849886,0.1709591,87490.0,87489.0,0.1149206]
[1743088850088,0.29412733,87490.0,87489.0,0.2124206]
[1743088850385,0.1709591,87490.0,87489.0,0.2124206]
[1743088850588,0.20843931,87490.0,87489.0,0.2124206]
[1743088850790,0.21243931,87490.0,87489.0,0.2124206]
[1743088851192,0.21243931,87490.0,87489.0,0.22102979]
[1743088851393,0.21643931,87490.0,87489.0,0.22102979]
[1743088851690,0.21643931,87490.0,87489.0,0.12352979]
[1743088851891,0.31293931,87490.0,87489.0,0.12352979]
[1743088853495,0.31293931,87490.0,87489.0,0.00920919]
[1743088853496,0.32172132,87490.0,87489.0,0.00920919]
[1743088853694,0.32172132,87490.0,87477.0,0.0571677]
[1743088853695,0.1143298,87482.0,87481.0,0.00017151]
[1743088853895,0.11544981,87482.0,87481.0,0.00137151]
[1743088854595,0.31204981,87482.0,87481.0,0.00137151]
[1743088854898,0.31204981,87482.0,87481.0,0.10710992]
[1743088855195,0.31404981,87482.0,87481.0,0.21280261]
[1743088855787,0.31404981,87482.0,87481.0,0.09847151]
[1743088856197,0.31604981,87482.0,87481.0,0.00137151]
[1743088856396,0.1143481,87468.0,87465.0,0.1773354]
[1743088856598,0.1143481,87468.0,87467.0,1.02764752]
[1743088856799,0.0955,87469.0,87468.0,0.1143481]
[1743088857004,0.1143415,87474.0,87473.0,0.1715084]
[1743088857196,0.1143415,87474.0,87473.0,0.1721084]
[1743088857404,8e-05,87475.0,87474.0,0.1143402]
[1743088857710,0.16983909,87510.0,87509.0,0.1142945]
[1743088858005,0.28561229,87510.0,87509.0,0.4756945]
[1743088858207,0.28561229,87510.0,87509.0,0.48265147]
[1743088858405,0.28561229,87510.0,87509.0,0.67855147]
[1743088858604,0.28561229,87510.0,87509.0,0.6715945]
[1743088859005,0.28561229,87510.0,87509.0,0.5573]
[1743088859209,0.28561229,87510.0,87509.0,0.0006]
[1743088859415,0.1143023,87503.0,87502.0,0.2673511]
[1743088859619,0.1157823,87503.0,87502.0,0.2679511]
[1743088859808,0.1157823,87503.0,87502.0,0.1536512]
[1743088860114,0.1157823,87503.0,87502.0,0.16069477]
[1743088860412,0.1157823,87503.0,87502.0,0.26059477]
[1743088860814,0.1177823,87503.0,87502.0,0.26059477]
[1743088861015,0.1197823,87503.0,87502.0,0.26059477]
[1743088861318,0.3143823,87503.0,87502.0,0.26059477]
[1743088861809,0.00548,87503.0,87502.0,0.26059477]
[1743088862011,0.004,87503.0,87502.0,0.26059477]
[1743088862207,0.1183023,87503.0,87502.0,0.32356357]
[1743088862413,0.11986231,87503.0,87502.0,0.43786717]
[1743088863117,0.00556001,87503.0,87502.0,0.43786717]
[1743088863510,0.11986231,87503.0,87502.0,0.43786717]
[1743088863712,0.00556001,87503.0,87502.0,0.43786717]
[1743088864009,0.11986231,87503.0,87502.0,0.43786717]
[1743088864209,0.00556001,87503.0,87502.0,0.43786717]
[1743088864412,0.11986231,87503.0,87502.0,0.31774717]
[1743088864609,0.21626231,87503.0,87502.0,0.31774717]
[1743088864815,0.00556001,87503.0,87502.0,0.31774717]
[1743088865012,0.5710869,87569.0,87510.0,0.1142932]
[1743088865013,0.00016,87513.0,87510.0,0.1142932]
[1743088865220,0.09657142,87518.0,87517.0,0.114284]
[1743088865415,0.09765142,87518.0,87517.0,0.114884]
[1743088865615,0.1505359,87527.0,87517.0,0.114884]
[1743088865616,0.3608,87540.0,87528.0,0.1142697]
[1743088865914,0.17067909,87529.0,87528.0,0.48279353]
[1743088866306,0.17067909,87529.0,87528.0,0.67019353]
[1743088867218,0.00284,87529.0,87528.0,0.67019353]
[1743088867412,0.00284,87529.0,87528.0,0.67872746]
[1743088868013,0.00384,87529.0,87528.0,0.67872746]
[1743088868524,0.19284,87529.0,87528.0,0.67872746]
[1743088868711,0.3071084,87529.0,87528.0,0.67872746]
[1743088869109,0.3071084,87529.0,87528.0,0.58442746]
[1743088869514,0.3071084,87529.0,87528.0,0.57589353]
[1743088869715,0.00384,87529.0,87528.0,0.58464819]
[1743088869914,0.0998,87549.0,87528.0,0.81597849]
[1743088870224,0.23845472,87553.0,87552.0,0.1142383]
[1743088870418,0.23777472,87553.0,87552.0,0.2349983]
[1743088870612,0.23845472,87553.0,87552.0,0.1149183]
[1743088870817,0.00068,87553.0,87552.0,0.2349983]
[1743088871020,0.0998,87558.0,87557.0,0.1142318]
[1743088871207,0.10052,87558.0,87557.0,0.4756718]
[1743088871414,0.2147505,87558.0,87557.0,0.36144]
[1743088872516,0.2147505,87558.0,87557.0,0.55104]
[1743088872720,0.2147505,87558.0,87557.0,0.55204]
[1743088873522,0.2147505,87558.0,87557.0,0.55304]
[1743088874032,0.0571175,87555.0,87544.0,0.00017142]
[1743088874229,0.1142475,87545.0,87544.0,0.00077142]
[1743088874526,0.36968183,87545.0,87519.0,0.0974]
[1743088874714,0.1142919,87511.0,87510.0,0.0974]
[1743088875230,0.1155719,87511.0,87510.0,0.2122932]
[1743088875415,0.11553191,87511.0,87510.0,0.2122932]
[1743088875621,0.21553191,87511.0,87510.0,0.0006]
[1743088875825,0.30693191,87511.0,87510.0,0.0006]
[1743088876119,0.30693191,87511.0,87510.0,0.1148932]
[1743088876325,0.30693191,87511.0,87510.0,0.2063932]
[1743088876521,0.21553191,87511.0,87510.0,0.2063932]
[1743088876724,0.1,87511.0,87510.0,0.3004932]
[1743088876919,0.2142919,87511.0,87510.0,0.3004932]
[1743088877128,0.2142919,87511.0,87510.0,0.3024932]
[1743088877129,0.1,87511.0,87510.0,0.3024932]
[1743088877330,0.2142919,87511.0,87510.0,0.3024932]
[1743088877829,0.2142919,87511.0,87510.0,0.3014932]
[1743088878029,0.21553191,87511.0,87510.0,0.3014932]
[1743088878324,0.21553191,87511.0,87510.0,0.0036]
[1743088878726,0.21553191,87511.0,87502.0,0.00017132]
[1743088878727,0.1143023,87503.0,87502.0,0.00017132]
[1743088878931,0.11554231,87503.0,87502.0,0.00077132]
[1743088880118,0.11554231,87503.0,87502.0,0.00377132]
[1743088880717,0.11554231,87503.0,87502.0,0.47887492]
[1743088880923,0.11554231,87503.0,87502.0,0.47987492]
[1743088881321,0.11554231,87503.0,87502.0,0.45767132]
[1743088881521,0.23554231,87503.0,87502.0,0.00477132]
[1743088881931,0.42154231,87503.0,87502.0,0.00477132]
[1743088882730,0.1143245,87486.0,87476.0,0.3608]
[1743088883031,0.1143245,87486.0,87485.0,0.3698794]